bitfinex/quotes_SOLUSD_20260109
["timestamp","ask_amount","ask_price","bid_price","bid_amount"]
[1767976578154,11.81429757,139.39,139.34,12.23779413]
[1767976578342,13.1,139.38,139.34,12.17779413]
[1767976578543,20.27473402,139.38,139.34,12.17779413]
[1767976578962,31.79003159,139.38,139.34,0.66249656]
[1767976579162,32.28634405,139.38,139.34,0.66249656]
[1767976579367,0.49237907,139.36,139.31,11.51529757]
[1767976579554,0.10686718,139.35,139.31,11.51529757]
[1767976579944,13.1,139.35,139.31,18.69349021]
[1767976580367,13.1,139.35,139.31,19.41598677]
[1767976580667,31.88997849,139.36,139.32,0.72249656]
[1767976580870,0.50032572,139.38,139.34,0.72249656]
[1767976581165,13.1,139.38,139.34,12.17779413]
[1767976582259,13.1,139.38,139.35,11.51529757]
[1767976582656,13.1,139.38,139.34,7.17653466]
[1767976582657,13.1,139.38,139.34,18.69183223]
[1767976583051,13.1,139.38,139.35,0.72249656]
[1767976583260,13.1,139.38,139.34,19.41432879]
[1767976583472,19.44513024,139.39,139.34,19.41432879]
[1767976583677,32.54513024,139.39,139.34,19.41432879]
[1767976584155,32.54513024,139.39,139.34,7.89903122]
[1767976584682,0.54675953,139.35,139.3,12.23779413]
[1767976584868,11.51529757,139.35,139.3,0.72249656]
[1767976585370,11.51529757,139.34,139.3,0.72249656]
[1767976585572,13.1,139.36,139.3,0.72249656]
[1767976585780,11.51529757,139.35,139.31,0.72249656]
[1767976586075,11.51529757,139.33,139.29,0.72249656]
[1767976586278,11.51529757,139.32,139.28,0.72249656]
[1767976586877,13.1,139.33,139.28,0.72249656]
[1767976586878,24.61529757,139.33,139.28,19.41728845]
[1767976587682,11.51529757,139.31,139.26,0.72249656]
[1767976587883,11.51529757,139.3,139.26,0.72249656]
[1767976588088,11.51529757,139.27,139.24,0.72249656]
[1767976589054,11.51529757,139.28,139.24,7.90428937]
[1767976589464,24.61529757,139.28,139.24,7.90428937]
[1767976590168,13.1,139.28,139.24,19.41958694]
[1767976590380,13.1,139.28,139.25,0.72249656]
[1767976590684,13.1,139.28,139.26,0.72249656]
[1767976590975,13.1,139.28,139.25,7.18105618]
[1767976591175,13.1,139.28,139.24,7.90430033]
[1767976591380,31.79520503,139.28,139.23,7.1822654]
[1767976591584,11.51529757,139.24,139.2,0.72249656]
[1767976592279,24.61529757,139.25,139.2,12.23779413]
[1767976592476,24.61529757,139.25,139.2,0.72249656]
[1767976592657,11.51529757,139.24,139.2,7.90603554]
[1767976592966,24.61529757,139.25,139.21,0.68780691]
[1767976593584,13.1,139.25,139.21,0.68780691]
[1767976593765,24.61529757,139.27,139.23,0.68780691]
[1767976594080,24.61529757,139.27,139.21,12.20310448]
[1767976595180,11.51529757,139.27,139.23,0.68780691]
[1767976595785,42.85070054,139.33,139.25,0.68780691]
[1767976595786,17.94494112,139.32,139.25,0.68780691]
[1767976595982,11.51529757,139.29,139.23,11.79962071]
[1767976596176,11.51529757,139.29,139.24,0.68780691]
[1767976596377,11.51529757,139.29,139.25,0.68780691]
[1767976596561,11.51529757,139.3,139.25,0.68780691]
[1767976596879,11.51529757,139.29,139.25,0.68780691]
[1767976597184,11.51529757,139.27,139.23,69.76998785]
[1767976597389,11.51529757,139.28,139.24,0.68780691]
[1767976597778,11.51529757,139.29,139.24,0.68780691]
[1767976599383,11.51529757,139.28,139.24,0.68780691]
[1767976600081,24.61529757,139.29,139.25,0.68780691]
[1767976600386,13.1,139.3,139.25,0.68780691]
[1767976600692,24.61529757,139.3,139.25,0.68780691]
[1767976601572,35.87563214,139.38,139.29,0.68780691]
[1767976601890,11.51529757,139.34,139.3,0.68780691]
[1767976602191,11.51529757,139.36,139.31,12.20310448]
[1767976602585,24.61529757,139.37,139.32,12.20310448]
[1767976602888,13.1,139.37,139.32,12.20310448]
[1767976603472,18.88961753,139.39,139.34,0.68780691]
[1767976603784,11.71529757,139.39,139.34,0.68780691]
[1767976603963,11.51529757,139.38,139.35,0.68780691]
[1767976604392,11.51529757,139.38,139.33,7.8650121]
[1767976605191,11.51529757,139.37,139.33,7.17720519]
[1767976605571,11.51529757,139.37,139.33,7.8650121]
[1767976605888,11.51529757,139.37,139.33,0.68780691]
[1767976606086,11.51529757,139.38,139.33,0.68780691]
[1767976606473,24.61529757,139.38,139.33,0.68780691]
[1767976606668,24.61529757,139.38,139.32,18.69280157]
[1767976606669,13.1,139.38,139.34,11.51529757]
[1767976606873,13.1,139.38,139.35,0.68780691]
[1767976607588,11.71529757,139.39,139.35,7.8638789]
[1767976607787,0.2,139.39,139.37,0.68780691]
[1767976608985,0.2,139.39,139.36,0.6593577]
[1767976609388,0.2,139.39,139.36,7.83482479]
[1767976609795,11.71529757,139.39,139.34,0.6593577]
[1767976610094,11.51529757,139.38,139.34,0.6593577]
[1767976610269,11.71529757,139.39,139.34,0.6593577]
[1767976610472,11.51529757,139.38,139.34,0.6593577]
[1767976611308,11.51529757,139.38,139.34,7.8357341]
[1767976611801,11.71529757,139.39,139.35,7.83545523]
[1767976612105,11.71529757,139.39,139.36,0.6593577]
[1767976612697,7.26730291,139.39,139.36,0.6593577]
[1767976615115,0.2,139.39,139.36,0.6593577]
[1767976615319,0.2,139.39,139.37,0.6593577]
[1767976615811,0.2,139.39,139.38,0.6593577]
[1767976616725,0.2,139.45,139.4,0.6593577]
[1767976617022,7.26730291,139.45,139.4,7.72666061]
[1767976617192,7.26730291,139.45,139.41,7.17308657]
[1767976617402,7.26730291,139.45,139.41,7.83244427]
[1767976618023,7.06730291,139.43,139.39,0.6593577]
[1767976618412,7.06730291,139.43,139.39,7.83343373]
[1767976618914,25.29865251,139.45,139.39,7.83343373]
[1767976619097,7.06730291,139.43,139.39,7.83343373]
[1767976619517,7.06730291,139.43,139.37,0.6593577]
[1767976619518,7.06730291,139.42,139.37,0.6593577]
[1767976619707,7.06730291,139.41,139.37,0.6593577]
[1767976619910,7.06730291,139.41,139.37,7.83420182]
[1767976620407,7.06730291,139.42,139.38,7.83386026]
[1767976621420,7.06730291,139.42,139.38,0.6593577]
[1767976621615,7.06730291,139.4,139.36,0.6593577]
[1767976621817,7.06730291,139.41,139.37,0.6593577]
[1767976622015,7.06730291,139.42,139.38,0.6593577]
[1767976622203,20.16730291,139.43,139.39,0.6593577]
[1767976622413,7.06730291,139.43,139.39,0.6593577]
[1767976623097,7.06730291,139.42,139.39,0.6593577]
[1767976623824,7.06730291,139.42,139.4,0.6779351]
[1767976624019,13.1,139.44,139.4,0.6779351]
[1767976624229,0.2,139.45,139.41,0.6779351]
[1767976624415,7.06730291,139.43,139.41,0.6779351]
[1767976624614,7.06730291,139.42,139.41,0.6779351]
[1767976624904,7.06730291,139.42,139.37,0.6779351]
[1767976625100,7.06730291,139.4,139.38,0.6779351]
[1767976625301,7.06730291,139.41,139.39,0.6779351]
[1767976626421,7.06730291,139.4,139.37,7.85289527]
[1767976626722,7.84899908,139.43,139.38,7.8525656]
[1767976626928,7.06730291,139.39,139.38,7.8525656]
[1767976627106,7.06730291,139.4,139.38,0.6779351]
[1767976627302,7.06730291,139.4,139.38,7.85236491]
[1767976630719,7.06730291,139.4,139.35,61.9]
[1767976630720,0.67670588,139.4,139.35,61.9]
[1767976630908,7.06730291,139.36,139.34,0.6779351]
[1767976631108,7.03730292,139.36,139.34,69.75441371]
[1767976631528,7.03730292,139.36,139.34,62.5779351]
[1767976631704,7.03730292,139.36,139.34,0.6779351]
[1767976631900,7.03730292,139.36,139.34,7.85448554]
[1767976632133,17.93400286,139.4,139.35,0.6779351]
[1767976632134,7.06730291,139.37,139.35,0.6779351]
[1767976632912,7.06730291,139.36,139.34,7.17655044]
[1767976633109,7.06730291,139.35,139.33,69.07708829]
[1767976633331,7.06730291,139.34,139.32,7.85544285]
[1767976634032,13.1,139.38,139.32,0.6779351]
[1767976634033,7.06730291,139.33,139.32,0.6779351]
[1767976635227,7.06730291,139.33,139.32,7.85565545]
[1767976635435,7.06730291,139.35,139.32,7.85565545]
[1767976636942,0.67670588,139.36,139.32,7.85565545]
[1767976637112,7.06730291,139.35,139.32,7.85565545]
[1767976637613,7.06730291,139.35,139.32,0.6779351]
[1767976638337,7.06730291,139.34,139.31,7.17806566]
[1767976638505,2.77224534,139.34,139.31,7.17806566]
[1767976638906,7.85208788,139.37,139.33,0.6779351]
[1767976639110,7.175382,139.37,139.33,0.6779351]
[1767976639346,2.77224534,139.34,139.33,0.6779351]
[1767976639507,2.74224535,139.34,139.33,0.6779351]
[1767976639707,2.74224535,139.34,139.32,7.85556785]
[1767976640412,2.77224534,139.33,139.3,7.85650085]
[1767976640615,2.77224534,139.31,139.28,0.6779351]
[1767976640929,2.77224534,139.3,139.28,7.17943419]
[1767976641116,2.74224532,139.3,139.28,7.17943419]
[1767976641318,0.67670588,139.35,139.29,0.6779351]
[1767976641530,2.77224534,139.33,139.29,0.96225824]
[1767976641731,3.44895122,139.34,139.29,3.73450358]
[1767976641928,2.77224534,139.33,139.29,0.6779351]
[1767976643153,2.77224534,139.32,139.3,7.17875089]
[1767976643638,2.77224534,139.33,139.3,7.17875089]
[1767976644241,3.44895122,139.34,139.3,7.85668599]
[1767976645135,3.44895122,139.33,139.29,7.1790252]
[1767976645446,0.67670588,139.31,139.27,3.45018044]
[1767976645641,0.67670588,139.31,139.28,7.17970021]
[1767976645937,3.44895122,139.32,139.28,7.85763531]
[1767976646125,3.44895122,139.32,139.28,7.17970021]
[1767976647340,0.67670588,139.31,139.27,7.8581276]
[1767976647527,3.44895122,139.31,139.27,7.8581276]
[1767976647934,3.44895122,139.31,139.27,0.6779351]
[1767976648242,0.67670588,139.29,139.25,7.85893438]
[1767976648428,2.77224534,139.28,139.25,0.6779351]
[1767976648743,2.74224535,139.28,139.25,0.6779351]
[1767976648935,2.74224535,139.28,139.24,0.1]
[1767976649638,2.77224534,139.26,139.24,0.1]
[1767976649817,2.77224534,139.25,139.21,0.6779351]
[1767976650417,2.77224534,139.24,139.21,0.6779351]
[1767976650847,2.77224534,139.24,139.21,7.18337777]
[1767976651145,3.44895122,139.24,139.2,7.86164598]
[1767976651331,3.44895122,139.23,139.19,7.23494254]
[1767976652241,0.67670588,139.22,139.19,0.0508224]
[1767976652546,7.0838612,139.23,139.19,0.7287575]
[1767976653845,20.86056708,139.24,139.19,7.8126187]
[1767976654542,28.04246789,139.24,139.19,14.99696442]
[1767976654754,0.69258124,139.23,139.19,0.0508224]
[1767976654924,7.0838612,139.22,139.19,0.0508224]
[1767976655245,7.77644244,139.22,139.19,0.0508224]
[1767976656423,7.0838612,139.2,139.16,0.65893477]
[1767976657232,0.65356092,139.2,139.16,0.65893477]
[1767976657429,7.73742212,139.2,139.16,7.8448139]
[1767976657656,7.73742212,139.2,139.16,0.65893477]
[1767976657845,0.65394722,139.18,139.14,7.94544959]
[1767976658047,7.7756698,139.17,139.14,0.1]
[1767976658840,0.65432583,139.16,139.14,0.1]
[1767976660242,7.73742212,139.17,139.14,0.1]
[1767976660449,0.65356092,139.17,139.14,0.1]
[1767976660752,7.73742212,139.17,139.14,0.1]
[1767976660945,0.69219104,139.16,139.14,0.1]
[1767976661143,7.77605224,139.16,139.14,0.1]
[1767976661347,0.5928086,139.14,139.1,0.1]
[1767976661535,7.0838612,139.15,139.1,0.1]
[1767976661536,7.73719703,139.13,139.1,0.1]
[1767976661733,7.0838612,139.13,139.1,0.1]
[1767976661934,7.0838612,139.13,139.08,22.19269017]
[1767976661935,13.1,139.15,139.08,14.4498942]
[1767976662153,13.1,139.15,139.08,22.29860118]
[1767976662454,7.0838612,139.14,139.09,7.74279597]
[1767976663254,20.1838612,139.15,139.1,0.65893477]
[1767976663561,20.1838612,139.15,139.1,7.74279597]
[1767976663733,20.87644244,139.15,139.1,7.74279597]
[1767976663930,13.79258124,139.15,139.11,0.65893477]
[1767976664262,13.1,139.15,139.12,7.1880391]
[1767976664937,0.42586093,139.16,139.12,7.84697387]
[1767976665139,0.42586093,139.16,139.12,14.93083507]
[1767976665362,7.0838612,139.15,139.11,7.1884342]
[1767976666061,7.77377524,139.15,139.11,7.1884342]
[1767976669252,7.77377524,139.15,139.08,15.45252737]
[1767976669253,0.42850146,139.14,139.08,15.45252737]
[1767976669460,0.67380497,139.13,139.1,7.18903162]
[1767976669643,13.56444944,139.14,139.1,7.18903162]
[1767976669844,13.56444944,139.14,139.1,7.90734165]
[1767976670082,13.12,139.14,139.11,0.71831003]
[1767976671077,7.0838612,139.17,139.13,0.71831003]
[1767976671376,13.56444944,139.18,139.13,7.80217123]
[1767976671551,20.64831064,139.18,139.14,0.71831003]
[1767976671861,7.52831064,139.18,139.14,0.71831003]
[1767976672061,0.44444944,139.18,139.14,7.80217123]
[1767976672269,7.0838612,139.19,139.15,0.71831003]
[1767976672458,7.75766617,139.2,139.16,0.71831003]
[1767976672957,13.12,139.21,139.17,7.90376666]
[1767976673165,13.12,139.21,139.18,0.71831003]
[1767976673571,7.0838612,139.23,139.19,0.71831003]
[1767976673776,27.83025402,139.24,139.19,7.80217123]
[1767976674365,20.64831064,139.24,139.19,7.80217123]
[1767976674580,25.07395443,139.24,139.19,12.22781502]
[1767976675063,13.56444944,139.24,139.2,19.41172306]
[1767976675264,13.12,139.24,139.21,0.71831003]
[1767976675660,0.67380497,139.26,139.22,12.22781502]
[1767976675858,24.62950499,139.27,139.23,0.71831003]
[1767976676673,25.07395443,139.27,139.22,11.50950499]
[1767976677176,13.56444944,139.27,139.22,19.41047278]
[1767976677373,25.07395443,139.27,139.22,19.41047278]
[1767976677563,11.50950499,139.26,139.22,0.71831003]
[1767976677868,24.62950499,139.27,139.22,12.22781502]
[1767976678069,24.62950499,139.27,139.22,19.4106121]
[1767976678270,11.50950499,139.26,139.22,7.90110711]
[1767976678673,11.50950499,139.26,139.2,17.95977011]
[1767976678674,11.50950499,139.25,139.21,7.18322561]
[1767976678870,11.50950499,139.25,139.21,7.90153564]
[1767976679268,11.50950499,139.24,139.21,7.90153564]
[1767976679464,11.95622505,139.25,139.21,7.90153564]
[1767976680181,0.44672006,139.25,139.21,7.90153564]
[1767976680379,0.67380497,139.31,139.25,0.71831003]
[1767976680681,11.95395443,139.32,139.28,0.71831003]
[1767976680877,12.17876849,139.29,139.24,0.71831003]
[1767976681079,11.50950499,139.28,139.24,0.71831003]
[1767976681581,11.50950499,139.28,139.24,7.90013376]
[1767976682077,25.07395443,139.32,139.27,12.22781502]
[1767976683871,25.07395443,139.32,139.27,19.40771208]
[1767976684665,25.07395443,139.32,139.28,0.66517334]
[1767976684884,11.50950499,139.34,139.29,11.50950499]
[1767976685079,13.81495784,139.35,139.3,11.50950499]
[1767976685388,32.50071702,139.35,139.28,0.28432314]
[1767976685570,11.50950499,139.34,139.29,11.50950499]
[1767976685770,25.32446283,139.35,139.31,7.17823558]
[1767976685970,11.50950499,139.34,139.3,7.17858866]
[1767976686480,13.32,139.35,139.32,11.50950499]
[1767976686684,0.2,139.35,139.33,11.50950499]
[1767976686879,19.36642577,139.39,139.35,0.66517334]
[1767976687182,11.50950499,139.38,139.33,12.17467833]
[1767976687583,11.50950499,139.38,139.33,0.66517334]
[1767976687879,12.19229137,139.39,139.34,19.35136844]
[1767976688089,0.68278638,139.41,139.36,0.66517334]
[1767976688294,12.19229137,139.41,139.36,12.17467833]
[1767976688495,0.68278638,139.4,139.36,12.17467833]
[1767976688998,0.68278638,139.4,139.35,0.28432314]
[1767976689205,0.68278638,139.4,139.35,12.45900147]
[1767976689388,12.19229137,139.4,139.35,12.45900147]
[1767976689584,11.50950499,139.4,139.35,12.39900147]
[1767976689793,11.50950499,139.41,139.37,11.50950499]
[1767976690178,18.68263939,139.41,139.36,11.50950499]
[1767976690375,11.50950499,139.41,139.36,18.68493468]
[1767976690807,11.50950499,139.41,139.36,11.50950499]
[1767976691187,11.50950499,139.41,139.36,18.68510499]
[1767976691590,7.17277712,139.42,139.36,18.68510499]
[1767976691797,7.17277712,139.42,139.36,7.1756]
[1767976691798,11.50950499,139.41,139.36,7.1756]
[1767976692106,18.68228211,139.42,139.37,12.17467833]
[1767976692983,11.50950499,139.41,139.37,11.50950499]
[1767976693179,31.78172519,139.43,139.38,11.50950499]
[1767976693708,13.1,139.43,139.39,12.17467833]
[1767976693879,7.37141137,139.45,139.36,25.11481056]
[1767976693880,0.2,139.45,139.42,11.50950499]
[1767976694072,7.52653064,139.45,139.4,7.17312708]
[1767976694298,0.15994513,139.43,139.39,11.50950499]
[1767976694494,11.50950499,139.44,139.39,11.50950499]
[1767976694694,11.50950499,139.44,139.39,19.34869066]
[1767976695106,25.29863957,139.45,139.4,11.50950499]
[1767976695107,36.80814456,139.45,139.4,11.50950499]
[1767976695409,11.50950499,139.44,139.39,12.17467833]
[1767976696077,18.68107623,139.44,139.39,19.34870754]
[1767976696785,19.18630146,139.44,139.39,19.34870754]
[1767976698106,19.18630146,139.44,139.4,11.50950499]
[1767976698726,19.18630146,139.44,139.39,12.17467833]
[1767976699306,7.67679647,139.44,139.4,11.50950499]
[1767976700003,0.10302163,139.41,139.37,11.50950499]
[1767976700389,0.49718156,139.4,139.37,11.50950499]
[1767976701106,0.49718156,139.4,139.36,11.50950499]
[1767976701409,0.49718156,139.4,139.37,11.50950499]
[1767976702112,0.49718156,139.4,139.33,7.84199199]
[1767976702113,0.10696323,139.39,139.33,7.84199199]
[1767976702301,0.49327938,139.38,139.34,11.50950499]
[1767976702494,7.66821828,139.38,139.34,11.50950499]
[1767976703099,0.49327938,139.38,139.34,18.68615206]
[1767976703305,0.49327938,139.38,139.34,19.3513254]
[1767976703706,11.50950499,139.39,139.35,0.66517334]
[1767976703912,20.2722404,139.43,139.38,12.17467833]
[1767976704119,13.1,139.43,139.4,11.50950499]
[1767976704313,13.1,139.43,139.4,11.47620183]
[1767976704695,7.27077396,139.44,139.4,11.47620183]
[1767976704901,7.47022992,139.45,139.41,11.50950499]
[1767976705822,0.50116297,139.44,139.41,11.50950499]
[1767976706002,0.50116297,139.44,139.4,12.17467833]
[1767976707109,7.67286576,139.44,139.4,11.50950499]
[1767976707322,19.18237075,139.44,139.4,11.50950499]
[1767976708494,19.18237075,139.44,139.39,7.83908946]
[1767976708694,19.18237075,139.44,139.4,11.50950499]
[1767976709423,0.10302163,139.43,139.39,11.50950499]
[1767976710620,11.61252662,139.43,139.39,11.50950499]
[1767976710819,0.49718156,139.42,139.39,11.50950499]
[1767976711017,0.10696323,139.41,139.37,11.50950499]
[1767976711317,0.49327938,139.4,139.36,12.17467833]
[1767976712101,12.00278437,139.4,139.36,0.66517334]
[1767976712324,0.49327938,139.4,139.36,12.17467833]
[1767976712834,18.79471422,139.39,139.34,32.49512099]
[1767976713016,18.79471422,139.39,139.35,11.50950499]
[1767976713196,7.28520923,139.39,139.35,11.50950499]
[1767976713625,12.01473022,139.41,139.36,12.21846592]
[1767976714727,19.18789108,139.41,139.36,12.21846592]
[1767976716225,0.10302163,139.38,139.32,0.70896093]
[1767976716406,0.10302163,139.38,139.34,11.50950499]
[1767976716729,0.10302163,139.38,139.34,12.21846592]
[1767976716897,12.00668655,139.37,139.33,13.1]
[1767976717103,11.61646822,139.36,139.31,11.50950499]
[1767976717306,11.61646822,139.36,139.31,12.21846592]
[1767976717907,11.61646822,139.36,139.31,19.39664028]
[1767976719021,7.17617509,139.35,139.31,19.39664028]
[1767976719208,7.17617509,139.35,139.31,12.21846592]
[1767976720223,19.18959776,139.38,139.34,0.70896093]
[1767976720539,7.17486754,139.38,139.34,12.21846592]
[1767976720728,7.17486754,139.38,139.35,11.50950499]
[1767976721045,20.2743521,139.39,139.35,12.21846592]
[1767976721223,20.2743521,139.39,139.36,11.50950499]
[1767976721537,32.28502006,139.39,139.35,12.21846592]
[1767976721909,19.18502006,139.39,139.35,12.21846592]
[1767976722609,19.18502006,139.39,139.35,0.70896093]
[1767976722810,19.18502006,139.39,139.33,7.88595353]
[1767976723011,19.18502006,139.39,139.34,12.21846592]
[1767976723212,7.67551507,139.39,139.34,12.21846592]
[1767976723415,19.18502006,139.39,139.34,12.21846592]
[1767976723840,7.67551507,139.39,139.34,12.21846592]
[1767976724019,7.67551507,139.39,139.35,0.70896093]
[1767976724428,11.50950499,139.38,139.35,0.70896093]
[1767976724622,105.00522523,139.43,139.38,0.70896093]
[1767976724827,5.43992798,139.42,139.38,12.21846592]
[1767976725024,0.10302163,139.4,139.36,19.39411126]
[1767976725714,7.27665157,139.4,139.36,0.70896093]
[1767976725913,18.78615656,139.4,139.36,0.70896093]
[1767976726621,7.27665157,139.4,139.36,0.70896093]
[1767976726937,11.61646822,139.38,139.34,0.70896093]
[1767976727119,18.79132338,139.38,139.34,0.70896093]
[1767976727729,11.50950499,139.36,139.32,25.31846592]
[1767976728217,18.68436015,139.38,139.35,0.69357629]
[1767976728421,18.68436015,139.38,139.33,19.37987079]
[1767976728629,18.68386539,139.39,139.34,19.37968997]
[1767976728821,18.68386539,139.39,139.35,0.69357629]
[1767976729025,7.1743604,139.39,139.35,0.69357629]
[1767976729226,18.68386539,139.39,139.35,0.69357629]
[1767976729427,20.27382271,139.4,139.36,0.69357629]
[1767976729637,32.28449067,139.4,139.36,0.69357629]
[1767976730527,20.77498568,139.4,139.36,0.69357629]
[1767976730832,11.50950499,139.38,139.34,0.69357629]
[1767976731232,11.61252662,139.39,139.34,12.20308128]
[1767976731835,11.61252662,139.39,139.34,0.69357629]
[1767976732040,11.61646822,139.37,139.33,13.1]
[1767976732945,7.17566016,139.36,139.32,0.69357629]
[1767976733121,7.17566016,139.36,139.32,12.20308128]
[1767976734132,18.68516515,139.36,139.32,12.20308128]
[1767976734443,7.28222416,139.37,139.32,7.8712131]
[1767976734644,7.07128469,139.36,139.32,0.69357629]
[1767976735026,14.24703062,139.36,139.32,0.69357629]
[1767976735724,7.07128469,139.36,139.32,0.69357629]
[1767976735930,14.35359437,139.37,139.32,14.94253248]
[1767976736643,7.17479969,139.38,139.34,7.76486098]
[1767976736845,7.17479969,139.38,139.35,0.69357629]
[1767976737020,14.34508438,139.38,139.33,0.69357629]
[1767976737223,14.34508438,139.38,139.33,7.76486098]
[1767976737545,14.34508438,139.38,139.33,14.94198769]
[1767976738043,14.34508438,139.38,139.34,0.69357629]
[1767976738345,7.07128469,139.38,139.34,7.76486098]
[1767976738530,2.7709186,139.38,139.34,3.46449489]
[1767976738727,7.17421536,139.39,139.36,0.69357629]
[1767976739034,7.17421536,139.39,139.35,3.46449489]
[1767976739447,0.10302163,139.38,139.34,3.46449489]
[1767976739822,0.10302163,139.38,139.34,10.64108311]
[1767976740134,9.94513396,139.39,139.35,0.69357629]
[1767976740336,13.1,139.4,139.37,0.69357629]
[1767976740538,107.3699186,139.43,139.38,2.7709186]
[1767976740722,3.27208157,139.42,139.38,2.7709186]
[1767976740924,3.27208157,139.42,139.37,3.46449489]
[1767976741249,3.27208157,139.42,139.37,0.69357629]
[1767976741429,3.27208157,139.42,139.37,3.46449489]
[1767976741637,10.44481386,139.42,139.37,3.46449489]
[1767976741837,0.49327938,139.38,139.33,0.69357629]
[1767976742031,2.8699186,139.39,139.34,10.64091556]
[1767976742643,2.8699186,139.39,139.34,3.46449489]
[1767976742935,2.7709186,139.38,139.34,0.69357629]
[1767976743946,9.94563029,139.38,139.34,0.69357629]
[1767976744248,2.8699186,139.39,139.34,10.64107043]
[1767976744638,9.94555723,139.38,139.34,0.69357629]
[1767976747454,10.4467202,139.38,139.34,0.69357629]
[1767976747653,3.26810016,139.36,139.31,0.67264376]
[1767976747844,3.26810016,139.36,139.32,0.67264376]
[1767976748253,2.7709186,139.36,139.32,0.67264376]
[1767976749565,2.7709186,139.37,139.33,3.44356236]
[1767976749767,18.43985725,139.4,139.35,0.67264376]
[1767976750071,2.7709186,139.38,139.35,0.67264376]
[1767976750751,9.94573242,139.38,139.35,0.67264376]
[1767976751062,7.17436839,139.39,139.35,0.67264376]
[1767976751265,7.17436839,139.39,139.37,0.67264376]
[1767976751646,7.17436839,139.39,139.35,3.44356236]
[1767976751865,9.94528699,139.39,139.35,3.44356236]
[1767976752250,9.94528699,139.39,139.35,0.67264376]
[1767976756287,7.17436839,139.39,139.36,0.67264376]
[1767976757678,2.87394023,139.4,139.37,0.67264376]
[1767976757679,7.17379263,139.4,139.37,0.67264376]
[1767976757883,9.94417091,139.41,139.38,0.67264376]
[1767976758064,7.17325231,139.41,139.38,0.67264376]
[1767976758375,9.94417091,139.41,139.38,0.67264376]
[1767976759272,2.7709186,139.4,139.38,0.67264376]
[1767976759485,7.17325231,139.41,139.38,0.67264376]
[1767976759776,2.7709186,139.4,139.38,0.67264376]
[1767976759977,2.87394023,139.39,139.34,20.94904455]
[1767976760160,2.7709186,139.37,139.34,0.67264376]
[1767976762680,2.7709186,139.37,139.34,7.84932313]
[1767976763375,2.7709186,139.38,139.34,7.84932313]
[1767976764087,2.7709186,139.37,139.34,7.84932313]
[1767976764262,7.27333826,139.39,139.35,0.67264376]
[1767976764588,2.7709186,139.39,139.35,0.67264376]
[1767976764791,7.67500276,139.4,139.34,0.67264376]
[1767976764792,2.7709186,139.37,139.34,0.67264376]
[1767976766491,7.17436167,139.39,139.35,0.67264376]
[1767976766669,2.7709186,139.38,139.35,0.67264376]
[1767976768185,9.94564604,139.38,139.35,0.67264376]
[1767976768685,7.67550268,139.39,139.35,0.67264376]
[1767976768870,2.7709186,139.38,139.35,0.67264376]
[1767976769790,9.94564718,139.38,139.35,0.67264376]
[1767976771570,2.7709186,139.38,139.35,0.67264376]
[1767976772071,2.7709186,139.37,139.35,0.67264376]
[1767976774510,2.7709186,139.37,139.34,0.70281546]
[1767976774796,2.87788183,139.35,139.31,7.88094598]
[1767976774973,5.37543627,139.36,139.32,0.70281546]
[1767976774974,0.099,139.36,139.32,0.70281546]
[1767976775173,2.7709186,139.34,139.32,0.70281546]
[1767976775374,2.7709186,139.33,139.3,0.70281546]
[1767976776499,9.94816023,139.33,139.3,0.70281546]
[1767976776697,9.94816023,139.33,139.29,13.1]
[1767976776698,3.26419798,139.31,139.27,0.70281546]
[1767976776905,2.7709186,139.32,139.28,0.70281546]
[1767976777091,10.45338546,139.33,139.29,0.70281546]
[1767976777906,2.7709186,139.32,139.28,7.88258474]
[1767976778397,2.7709186,139.31,139.27,7.88289598]
[1767976778606,2.7709186,139.29,139.25,13.80281546]
[1767976779118,2.7709186,139.29,139.25,20.98406062]
[1767976780302,2.7709186,139.29,139.26,0.70281546]
[1767976780501,9.95038439,139.29,139.26,0.70281546]
[1767976781202,7.68014391,139.3,139.26,0.70281546]
[1767976781382,2.7709186,139.29,139.26,0.70281546]
[1767976782403,9.94989954,139.3,139.26,0.70281546]
[1767976783402,2.7709186,139.29,139.26,0.70281546]
[1767976785515,25.12047787,139.33,139.27,0.70281546]
[1767976785686,7.17566016,139.36,139.29,0.70281546]
[1767976785884,2.7709186,139.33,139.29,0.70281546]
[1767976786498,0.50522523,139.35,139.29,0.70281546]
[1767976786499,2.7709186,139.34,139.3,0.70281546]
[1767976786994,20.27566016,139.36,139.3,0.70281546]
[1767976786995,2.7709186,139.36,139.32,0.70281546]
[1767976787599,2.7709186,139.35,139.32,0.70281546]
[1767976789326,2.7709186,139.33,139.3,0.72237872]
[1767976789536,2.7709186,139.34,139.3,0.72237872]
[1767976790205,2.7709186,139.34,139.31,0.72237872]
[1767976790412,10.45261172,139.35,139.31,0.72237872]
[1767976790713,2.7709186,139.34,139.31,0.72237872]
[1767976791690,9.94738649,139.35,139.31,0.72237872]
[1767976791920,2.7709186,139.36,139.32,0.72237872]
[1767976792107,2.7709186,139.36,139.33,0.72237872]
[1767976792413,9.94651681,139.37,139.33,0.72237872]